[Event "45th FIDE Olympiad 2024"]
[Site "Budapest"]
[Date "2024.09.14"]
[Round "4.37"]
[White "Kacharava, Nikolozi"]
[Black "Howell, David W L"]
[Result "0-1"]
[ECO "B12"]
[WhiteElo "2511"]
[BlackElo "2677"]
[Annotator "TA"]
[PlyCount "226"]
[EventDate "2024.09.05"]
[EventType "team-tourn"]
[EventCountry "HUN"]
[SourceTitle "playchess.com"]
[Source "ChessBase"]
[SourceQuality "1"]
[WhiteTeam "Georgia"]
[BlackTeam "England"]
[WhiteTeamCountry "GEO"]
[BlackTeamCountry "ENG"]
[TimeControl "40/5400+30:1800+30"]

{[%evp 13,226,13,0,0,0,0,0,-5,16,20,20,4,0,0,0,-13,-14,-18,0,-40,-36,-81,-66,-68,-74,-72,-79,-104,-71,-60,-73,-92,-89,-89,-78,-98,-101,-172,-160,-164,-199,-199,-184,-198,-191,-196,-201,-174,-190,-200,-207,-187,-165,-281,-262,-231,-167,-277,-251,-264,-198,-212,-8,-213,-200,-177,-160,-188,0,-192,0,-262,-257,-300,-300,-581,-512,-478,-478,-413,-129,-345,-76,-96,-52,-57,-22,-71,-87,-304,-304,-360,-355,-323,-303,-304,-279,-290,-248,-240,0,-276,-214,-197,-182,-139,-145,-220,-52,-97,-52,-52,-30,-43,-8,-42,0,-113,-68,-460,-69,-291,-69,-94,-139,-147,-69,-152,-154,-154,-162,-162,-56,-63,-70,-70,-81,-70,-8,-8,0,-83,-64,-100,0,-123,-162,-162,0,-73,-8,-8,0,-34,0,-8,-8,-8,-8,-8,-8,-8,-8,-8,-8,-152,-8,-152,-8,-152,-8,-35,0,-152,0,-133,-23,-23,-9,-9,-9,-135,-8,-117,-8,-14,0,0,0,-87,-188,-138,-167,-167,-160,-104,-104,-29969,-29970,-29970,-29970,-29971,-29972,-29969,-29968,-29980,-29981,-29984,-29985,-29985,-29986,-29986,-29987,-29987,-29988]} 1. e4 {[%emt 0:00:04]} c6 {[%emt 0:00:25]} 2. d4 {[%emt 0:00:19]} d5 {[%emt 0:00:06]} 3. e5 {[%emt 0:00:22]} Bf5 {[%emt 0:00:08]} 4. h4 {[%emt 0:00:29]} h5 {[%emt 0:00:15]} 5. c4 {[%emt 0:00:33]} e6 {[%emt 0:00:13]} 6. Nc3 {[%emt 0:00:32]} dxc4 {[%emt 0:00:20]} 7. Bxc4 {[%emt 0:00:23]} Nd7 {[%emt 0:00:06]} 8. Bb3 {[%emt 0:01:12]} Be7 {[%emt 0:26:58]} 9. Bc2 {[%emt 0:00:29]} Bxc2 {[%emt 0:22:48]} 10. Qxc2 {[%emt 0:00:05] The position is equal.} Nb6 {[%emt 0:05:28]} 11. Nf3 {[%emt 0:02:11]} Nd5 {[%emt 0:00:02]} 12. Ne4 {[%emt 0:14:27]} Qa5+ {[%emt 0:01:52]} 13. Bd2 {[%emt 0:04:36]} Nb4 {[%emt 0:08:54]} 14. Bxb4 {[%emt 0:12:21]} Qxb4+ {[%emt 0:02:30]} 15. Qc3 {[%emt 0:03:59]} Nh6 {[%emt 0:05:16]} 16. a3 {[%emt 0:05:13]} Qb5 {[%emt 0:06:03]} 17. Nc5 {[%emt 0:07:00]} Nf5 {[%emt 0:08:40][%cal Of5d4]} 18. a4 {[%emt 0:15:27]} Qb6 {[%emt 0:00:02][%cal Of5d4]} 19. Rc1 {[%emt 0:00:10]} a5 {[%emt 0:03:33]} 20. g3 {[%emt 0:03:00]} Rd8 {[%emt 0:01:25] And now ...Rd5 would win.} 21. O-O {[%emt 0:00:19]} O-O {[%emt 0:00:25]} 22. Rfd1 {[%emt 0:13:00]} Rd5 {[%emt 0:00:03][%cal Of5d4]} 23. Nb3 {[%emt 0:00:27]} Rfd8 {[%emt 0:00:10]} 24. Rd3 {[%emt 0:01:35]} Qa6 {[%emt 0:01:25] Black is much more active.} 25. Qc4 {[%emt 0:02:26]} (25. Rdd1 $17) 25... b5 $19 {[%emt 0:03:07]} 26. Qxc6 {[%emt 0:00:06]} Qxc6 {[%emt 0:00:05]} 27. Rxc6 {[%emt 0:00:02]} bxa4 {[%emt 0:00:08]} 28. Nbd2 {[%emt 0:00:22]} Nxd4 {[%emt 0:00:30]} 29. Rxd4 {[%emt 0:00:20]} Rxd4 {[%emt 0:00:05]} 30. Nxd4 {[%emt 0:00:01]} Rxd4 {[%emt 0:00:10][%mdl 4096] Endgame. KRB-KRN} 31. Nc4 {[%emt 0:00:34]} Bb4 {[%emt 0:00:43]} 32. Kf1 {[%emt 0:02:53]} Re4 {[%emt 0:02:56]} 33. f3 {[%emt 0:02:54]} (33. Nb6 $142) 33... Re1+ {[%emt 0:00:02]} 34. Kf2 {[%emt 0:00:05]} Kh7 {[%emt 0:00:55]} 35. f4 {[%emt 0:01:49]} (35. g4 $142) 35... Rb1 {[%emt 0:01:00]} 36. Ke2 {[%emt 0:02:43]} Kg6 {[%emt 0:00:15]} 37. Kf2 {[%emt 0:01:35]} Rd1 $2 {[%emt 0:01:19]} (37... Rc1 $19 38. Kf3 Bd2) 38. Ke2 $2 {[%emt 0:00:18]} (38. f5+ $1 $11 Kh7 (38... Kxf5 $2 39. Ne3+ Kxe5 40. Nxd1 $18) 39. fxe6 fxe6 40. Rxe6) 38... Re1+ {[%emt 0:00:16]} 39. Kf3 {[%emt 0:01:17]} Rf1+ {[%emt 0:00:30]} 40. Kg2 {[%emt 0:01:45]} Rb1 {[%emt 0:00:49]} 41. Kf2 $1 {[%emt 0:03:21]} Kh7 $2 {[%emt 0:17:22]} ({Black should try} 41... Rc1 $19 42. f5+ Kh7 43. fxe6 fxe6) 42. Kf3 $2 {[%emt 0:11:51][%mdl 8192]} (42. Ke2 $1 $11 Rc1 43. Kd3) 42... Rf1+ {[%emt 0:00:18]} 43. Kg2 {[%emt 0:05:13]} Rc1 {[%emt 0:05:40]} 44. Nxa5 $2 {[%emt 0:03:43]} (44. Kf2) 44... Rxc6 {[%emt 0:01:22]} 45. Nxc6 {[%emt 0:00:01] KB-KN} Bd2 {[%emt 0:00:09]} 46. Nd4 {[%emt 0:00:58]} Kg8 $2 {[%emt 0:04:34]} (46... Bc1 $19 47. b4 a3) 47. Ne2 $2 {[%emt 0:07:57]} (47. Nb5 $17) 47... Kf8 $2 {[%emt 0:00:07]} (47... f5 $19 {has better winning chances. Hoping for ...Kf8.} 48. Kf2 Kf7) 48. Kf3 {[%emt 0:00:07]} Ke7 {[%emt 0:00:07]} 49. Ke4 $1 {[%emt 0:00:13]} Kd7 {[%emt 0:00:09]} 50. Kd3 {[%emt 0:02:04]} (50. Kd4 $1 $11 {might be stronger.}) 50... Be1 $17 {[%emt 0:00:08]} 51. Nc3 $2 {[%emt 0:02:13]} (51. Kc4 $17 {was worth a try.}) 51... Bxg3 $19 {[%emt 0:00:33]} 52. Ke3 {[%emt 0:00:09]} Bxh4 {[%emt 0:02:14]} 53. Nxa4 {[%emt 0:00:03]} Be7 {[%emt 0:00:20] Repels b4} 54. Nc3 {[%emt 0:00:32]} Kc6 {[%emt 0:01:23]} 55. Ne4 {[%emt 0:00:21]} Kd5 {[%emt 0:03:04][%cal Og7g5]} 56. Nc3+ {[%emt 0:00:09]} Kc6 {[%emt 0:00:30]} 57. Ne4 $1 {[%emt 0:00:00]} f5 {[%emt 0:00:27]} 58. exf6 {[%emt 0:00:47]} Bxf6 {[%emt 0:00:01]} 59. b3 {[%emt 0:01:34]} Kd5 {[%emt 0:00:35]} 60. Ng3 {[%emt 0:01:04]} (60. Kf3 $17 {was necessary.}) 60... g6 $2 {[%emt 0:00:44]} (60... h4 $19 61. Nf1 Be7) 61. Ne2 {[%emt 0:00:14]} Be7 {[%emt 0:00:43]} 62. Nc3+ {[%emt 0:00:39]} Kc5 {[%emt 0:00:02] ...Kb4 is the strong threat.} 63. Ne2 {[%emt 0:00:46]} Bf6 {[%emt 0:00:12]} 64. Nc1 $1 {[%emt 0:00:22]} Kd5 {[%emt 0:00:20]} 65. Nd3 {[%emt 0:00:27]} (65. Ne2 $1 $11) 65... Bc3 {[%emt 0:00:07]} 66. Nc1 $2 {[%emt 0:00:29][%mdl 8192]} (66. Kf3 $15) 66... Bb4 $2 {[%emt 0:01:30]} (66... Bd4+ $19 67. Kf3 e5) 67. Ne2 $2 {[%emt 0:00:28]} (67. Nd3 $15 Bc3 68. Nc1) 67... Ba5 $2 {[%emt 0:00:45]} (67... h4 $1 $19 68. Kf3 h3) 68. Kf3 $15 {[%emt 0:00:09]} Bd2 {[%emt 0:00:10]} 69. Ng3 {[%emt 0:00:13]} Kd4 {[%emt 0:00:38]} (69... Bb4 $1 $17 70. Nf1 Bc5) 70. Ne4 {[%emt 0:00:20]} (70. Ne2+ $1 $15 Kd5 71. Ng3) 70... Bb4 $1 $17 {[%emt 0:00:06]} 71. Ng5 {[%emt 0:00:16]} Kd5 {[%emt 0:00:01]} 72. Ne4 {[%emt 0:00:42]} Be7 {[%emt 0:01:26]} (72... e5 $19 73. fxe5 Kxe5) 73. Nc3+ $15 {[%emt 0:00:04]} Kc5 {[%emt 0:00:26]} 74. Ne2 {[%emt 0:00:39]} Bf6 {[%emt 0:00:21]} 75. Nc1 {[%emt 0:00:10]} Kd4 {[%emt 0:00:17]} (75... Kd5 $1 $15 76. Nd3 e5) 76. Ne2+ $11 {[%emt 0:00:07]} Kd5 {[%emt 0:01:00]} 77. Ng3 {[%emt 0:00:20]} (77. Ke3 $1 $11) 77... Be7 {[%emt 0:00:19]} 78. Ne2 {[%emt 0:00:21]} Bb4 {[%emt 0:00:44]} ({Black should play} 78... e5 $17 {aiming for ...e4+.} 79. Nc3+ Ke6) 79. Ng3 {[%emt 0:00:51]} (79. Ke3 $1 $11) 79... Bd6 $17 {[%emt 0:00:29]} 80. Ne4 {[%emt 0:01:09] [#]} Be7 {[%emt 0:00:26]} (80... e5 $1 $19 {[%cal Re5f4]} 81. fxe5 Kxe5) 81. Nc3+ $1 {[%emt 0:00:28]} Kd4 {[%emt 0:00:35]} (81... Kc6 $17 82. Ke4 h4) 82. Ne2+ $11 {[%emt 0:00:48]} Kc5 {[%emt 0:00:26]} 83. Nc1 {[%emt 0:01:21]} Bf6 {[%emt 0:00:32]} 84. Ke4 {[%emt 0:00:29]} Bc3 {[%emt 0:00:38]} 85. Nd3+ {[%emt 0:00:14]} Kc6 {[%emt 0:00:16]} 86. Nf2 {[%emt 0:00:54]} (86. Ne5+ $2 Bxe5 87. Kxe5 Kb5 $19) 86... Bg7 {[%emt 0:00:43]} 87. Nh3 {[%emt 0:00:17]} Kc5 {[%emt 0:00:25]} 88. Ng5 {[%emt 0:00:12]} Kd6 {[%emt 0:00:02]} 89. Kf3 {[%emt 0:00:56]} (89. Nf3 $11 {remains equal.}) 89... Kd5 {[%emt 0:00:16]} (89... e5 $17 {With the idea ...exf4.} 90. Ne4+ Kd5) 90. Ne4 {[%emt 0:00:14]} (90. b4 $1 $11) 90... Bb2 {[%emt 0:01:05]} (90... e5 $17 {next ...exf4 is good for Black.} 91. fxe5 Bxe5 (91... Kxe5 92. b4 $17)) 91. Ng5 {[%emt 0:00:44]} (91. b4 $1 $11) 91... Ba3 {[%emt 0:00:42]} (91... e5 $17 {...Bc1 would now be deadly.} 92. fxe5 Kxe5 (92... Bxe5 $2 93. b4 $19)) 92. Ne4 {[%emt 0:00:20]} Bb4 {[%emt 0:00:01] Prevents Nc3+.} (92... Kd4 $15 93. Ng3 Bb4 94. Ne2+ Kd5) 93. Ng3 $1 $17 {[%emt 0:00:44]} Ba5 $2 {[%emt 0:00:42]} (93... Bc3 $17 94. Ne4 Bb4 95. Nf6+ Kd4) 94. Ne4 {[%emt 0:00:32]} (94. Ne2 $1 $11 {was the only way to keep the balance.}) 94... Bd8 {[%emt 0:00:01]} (94... e5 $17 95. fxe5 Kxe5) 95. Nc3+ $1 $11 {[%emt 0:00:22]} Kc5 {[%emt 0:01:06]} 96. Ne2 {[%emt 0:00:07]} Bb6 {[%emt 0:00:26] White must now prevent ...Kb4.} 97. Nc1 {[%emt 0:01:08] [#]} (97. Ke4 $1 $11) 97... Bc7 {[%emt 0:00:46]} (97... Kd5 $1 $17 98. Nd3 Kd4) 98. Ne2 {[%emt 0:00:07]} (98. Ke4 $1 $11) 98... Bd6 {[%emt 0:00:24]} (98... Kd5 $17 {Threatening ...e5.} 99. Nc3+ Kc5) 99. Ke4 $1 {[%emt 0:00:09]} Bb8 {[%emt 0:00:35]} 100. Nd4 {[%emt 0:00:12]} Kd6 {[%emt 0:00:05] Threatens to win with ...h4.} 101. f5 {[%emt 0:01:08]} exf5+ $17 {[%emt 0:00:49]} 102. Nxf5+ {[%emt 0:00:03]} Kd7 {[%emt 0:00:06]} ({Don't play} 102... gxf5+ $6 103. Kxf5 Ke7 104. Kg5 $11) 103. Nh4 {[%emt 0:01:26]} g5 {[%emt 0:00:02]} 104. Ng2 {[%emt 0:00:35]} (104. Nf5 $142) 104... Ke6 {[%emt 0:00:50]} 105. Kf3 $2 {[%emt 0:00:16][%mdl 8192]} (105. b4 $17 Kf6 106. Ne3) 105... g4+ {[%emt 0:00:35] Black mates.} 106. Ke4 {[%emt 0:00:34]} Kf6 {[%emt 0:00:05]} 107. Nh4 {[%emt 0:00:31]} Bg3 {[%emt 0:01:01]} 108. Nf5 {[%emt 0:00:28]} Be1 {[%emt 0:00:17]} 109. Nd4 {[%emt 0:00:40]} h4 {[%emt 0:00:44]} 110. Nf3 {[%emt 0:00:25]} gxf3 {[%emt 0:00:21]} 111. Kxf3 {[%emt 0:00:05]} h3 {[%emt 0:00:05]} 112. b4 {[%emt 0:00:05]} Ke6 {[%emt 0:00:08]} ({Stronger than} 112... Bxb4 113. Kg3 $11) 113. b5 {[%emt 0:00:20]} Kd6 {[%emt 0:00:06] Weighted Error Value: White=0.42/Black=0.48.  Loses game:     	White=7     	---        Missed win:     	---       	Black=7      Mistake:       	White=18    	Black=14     Inaccurate:     	White=5     	Black=7      OK:         	White=29    	Black=26     Best:        	White=4     	Black=9      Strong:       	White=8     	Black=1} 0-1

[Event "45th FIDE Olympiad 2024"]
[Site "Budapest"]
[Date "2024.09.14"]
[Round "4.37"]
[White "Khalema, Sechaba"]
[Black "Mfune, Petros"]
[Result "0-1"]
[ECO "A51"]
[WhiteElo "1779"]
[BlackElo "1986"]
[PlyCount "32"]
[EventDate "2024.09.05"]
[EventType "team-tourn"]
[EventCountry "HUN"]
[WhiteTeam "Lesotho"]
[BlackTeam "Malawi"]
[WhiteTeamCountry "LES"]
[BlackTeamCountry "MWI"]
[TimeControl "40/5400+30:1800+30"]

1. d4 Nf6 2. c4 e5 3. a3 exd4 4. Qxd4 Nc6 5. Qd2 a5 6. Nc3 Bc5 7. Qg5 Qe7 8. Nb5 Bxf2+ 9. Kd1 O-O 10. Nxc7 Qd6+ 11. Nd5 Ne5 12. Bf4 Nxd5 13. cxd5 Qxd5+ 14. Bd2 Qb3+ 15. Kc1 Nc4 16. Rb1 Ne3 {0-} 0-1

[Event "45th FIDE Olympiad 2024"]
[Site "Budapest"]
[Date "2024.09.14"]
[Round "4.38"]
[White "Adams, Michael"]
[Black "Paichadze, Luka"]
[Result "1/2-1/2"]
[ECO "B12"]
[WhiteElo "2661"]
[BlackElo "2516"]
[Annotator "TA"]
[PlyCount "104"]
[EventDate "2024.09.05"]
[EventType "team-tourn"]
[EventCountry "HUN"]
[SourceTitle "playchess.com"]
[Source "ChessBase"]
[SourceQuality "1"]
[WhiteTeam "England"]
[BlackTeam "Georgia"]
[WhiteTeamCountry "ENG"]
[BlackTeamCountry "GEO"]
[TimeControl "40/5400+30:1800+30"]

{[%evp 29,104,-12,0,-7,6,0,0,0,0,-10,-6,-41,-24,-40,-49,-62,-42,-45,-41,-70,-69,-87,-77,-87,-64,-48,-49,-44,0,0,242,219,283,0,-4,-33,-33,-35,-29,-38,-18,-71,-8,-8,-8,-8,-8,-8,0,-8,0,-8,-8,-2,-2,-2,-2,-2,0,0,0,0,0,0,0,0,0,0,0,0,0,0,0,0,0,0,0]} 1. e4 {[%emt 0:00:03]} c6 {[%emt 0:00:08]} 2. d4 {[%emt 0:00:07]} d5 {[%emt 0:00:04]} 3. e5 {[%emt 0:00:05]} Bf5 {[%emt 0:00:34]} 4. Bd3 {[%emt 0:00:09]} Bxd3 {[%emt 0:00:14]} 5. Qxd3 {[%emt 0:00:06]} e6 {[%emt 0:00:18]} 6. Ne2 {[%emt 0:00:07]} Qa5+ {[%emt 0:04:44]} 7. c3 {[%emt 0:00:54]} Qa6 {[%emt 0:00:22] B12: Caro-Kann: Advance Variation.} 8. Qd1 {[%emt 0:00:59]} c5 {[%emt 0:00:54]} 9. O-O {[%emt 0:02:40]} Nc6 {[%emt 0:00:41]} 10. a4 {[%emt 0:06:08]} cxd4 {[%emt 0:08:32]} 11. Nxd4 {[%emt 0:00:55]} Nxd4 {[%emt 0:05:30]} 12. cxd4 {[%emt 0:02:55]} Ne7 {[%emt 0:01:16]} 13. Nc3 {[%emt 0:02:38]} Nc6 {[%emt 0:01:44]} 14. Be3 {[%emt 0:06:43]} Qb6 $146 {[%emt 0:05:56]} ({Predecessor:} 14... Be7 15. Qg4 Kf8 16. Rad1 Qb6 17. f4 h5 18. Qh3 g6 19. Rf2 Kg8 20. Qg3 Qd8 {½-½ Torres Rebolledo,A (2193)-Lopez Varela,P (2362) Oviedo op 10th 2024 (9)}) 15. Qg4 {[%emt 0:09:15]} a6 {[%emt 0:08:04]} 16. Rfc1 {[%emt 0:03:53]} h5 {[%emt 0:05:05]} 17. Qd1 {[%emt 0:09:25]} Na5 {[%emt 0:05:23]} 18. Rc2 {[%emt 0:05:29]} Be7 {[%emt 0:08:10]} 19. h3 {[%emt 0:04:20]} g6 {[%emt 0:02:18]} 20. Qf3 {[%emt 0:03:50]} O-O {[%emt 0:03:03]} 21. Ne2 {[%emt 0:07:14]} Rac8 {[%emt 0:07:35]} 22. Rac1 {[%emt 0:00:50]} Rc6 {[%emt 0:12:58]} 23. Rxc6 {[%emt 0:08:30]} bxc6 {[%emt 0:02:38]} 24. Nf4 {[%emt 0:03:40]} Nc4 $1 {[%emt 0:00:54]} 25. Qg3 {[%emt 0:06:26]} Kh7 {[%emt 0:03:53]} (25... Qxb2 $2 26. Nxg6 fxg6 27. Qxg6+ Kh8 28. Rb1 $18 (28. Qxe6 Nxe3 29. Qh6+ Kg8 $11) (28. Qxh5+ Kg8 $18) (28. Qxe6 Nxe3 29. Qh6+ Kg8 $11) (28. Qxh5+ Kg8 $18)) 26. Nd3 {[%emt 0:01:34]} Qb3 $1 {[%emt 0:00:50]} 27. Rc3 {[%emt 0:03:05]} Qd1+ {[%emt 0:01:37]} 28. Kh2 {[%emt 0:00:04]} Rb8 {[%emt 0:03:26]} (28... Nxe3 {simplifies} 29. fxe3 Qxa4 30. Qf2 Kg7) 29. Bg5 {[%emt 0:04:27]} Bf8 $2 {[%emt 0:03:53]} (29... Bxg5 $11 {and Black is okay.} 30. Qxg5 Nd2) 30. Qf4 $18 {[%emt 0:02:03]} Kg8 {[%emt 0:00:12] [#]} 31. g4 $2 {[%emt 0:00:16]} (31. Nc5 $1 $18 {[%cal Rc5d7] Black must now prevent Nd7.} Bxc5 (31... Rxb2 $2 {loses.} 32. Rf3 $18) 32. dxc5) 31... Rb3 $11 {[%emt 0:02:53]} 32. Qc1 {[%emt 0:03:14]} (32. Rxb3 {is more complex.} Qxb3 33. Nc1 Qxb2 34. gxh5 Qc2 35. hxg6 fxg6 36. Qf6) 32... Qxc1 {[%emt 0:00:26]} 33. Bxc1 {[%emt 0:00:05]} Rxc3 {[%emt 0:00:31]} 34. bxc3 {[%emt 0:00:02]} hxg4 {[%emt 0:00:19]} 35. hxg4 {[%emt 0:00:05] [#]} Nb6 {[%emt 0:01:53]} (35... a5 $1 $17 36. Bg5 Ba3) 36. a5 $11 {[%emt 0:00:38]} Nc4 {[%emt 0:00:16]} 37. Nb4 {[%emt 0:00:06]} Nxa5 {[%emt 0:00:53]} 38. Nxa6 {[%emt 0:00:08]} Nb3 {[%emt 0:00:26]} 39. Be3 {[%emt 0:01:29]} Ba3 {[%emt 0:00:27]} 40. Kg3 {[%emt 0:02:05]} Bb2 {[%emt 0:00:28]} 41. Nb4 {[%emt 0:30:57]} Bxc3 {[%emt 0:31:00]} 42. Nxc6 {[%emt 0:03:05]} Kf8 {[%emt 0:00:00]} 43. Kf3 {[%emt 0:00:00]} Ke8 {[%emt 0:00:00]} 44. Ke2 {[%emt 0:00:00]} Kd7 {[%emt 0:00:00]} 45. Kd3 $1 {[%emt 0:00:00]} Kxc6 {[%emt 0:00:00]} 46. Kxc3 {[%emt 0:00:00]} Na5 {[%emt 0:00:00]} 47. Kb4 {[%emt 0:00:00]} Kb6 {[%emt 0:00:00]} 48. Ka4 {[%emt 0:00:00]} Nc6 {[%emt 0:00:00]} 49. f3 {[%emt 0:00:00]} Ka6 {[%emt 0:00:00]} 50. Bf2 {[%emt 0:00:00]} Kb6 {[%emt 0:00:00]} 51. Be3 {[%emt 0:00:00]} Ka6 {[%emt 0:00:00]} 52. Bf2 {[%emt 0:00:00]} Kb6 {[%emt 0:00:00]} 1/2-1/2

[Event "45th FIDE Olympiad 2024"]
[Site "Budapest"]
[Date "2024.09.14"]
[Round "4.38"]
[White "Mwale, Joseph"]
[Black "Tsephe, Lebajoa"]
[Result "1/2-1/2"]
[ECO "B99"]
[WhiteElo "2063"]
[BlackElo "1900"]
[PlyCount "126"]
[EventDate "2024.09.05"]
[EventType "team-tourn"]
[EventCountry "HUN"]
[WhiteTeam "Malawi"]
[BlackTeam "Lesotho"]
[WhiteTeamCountry "MWI"]
[BlackTeamCountry "LES"]
[TimeControl "40/5400+30:1800+30"]

1. e4 c5 2. Nf3 d6 3. d4 cxd4 4. Nxd4 Nf6 5. Nc3 a6 6. Bg5 e6 7. f4 Be7 8. Qf3 Qc7 9. O-O-O Nbd7 10. g4 h6 11. Bxf6 Bxf6 12. h4 Nb6 13. g5 Bxd4 14. Rxd4 Bd7 15. Qd3 hxg5 16. fxg5 Rd8 17. g6 Bc6 18. Bh3 Rxh4 19. Qg3 Rh6 20. gxf7+ Qxf7 21. Rg1 Nc8 22. Rd3 Rd7 23. Rf3 Rf6 24. Rgf1 Re7 25. Rxf6 gxf6 26. Qh4 Bd7 27. Rxf6 Qg7 28. Bg4 b5 29. e5 dxe5 30. Ne4 Kd8 31. Rf3 Kc7 32. Nc5 Bc6 33. Nxa6+ Kb6 34. Rc3 Kxa6 35. Rxc6+ Kb7 36. Rc5 Na7 37. Qh1+ Kb8 38. Bf3 Qg5+ 39. Kb1 Rh7 40. Qe1 Qf4 41. Qxe5+ Qxe5 42. Rxe5 Rf7 43. Bd1 Rf6 44. b4 Kc7 45. Be2 Kd6 46. Rc5 Rf5 47. Rxf5 exf5 48. Kb2 Ke5 49. Kb3 f4 50. c4 Nc6 51. Bf1 Nd4+ 52. Kc3 bxc4 53. a4 f3 54. a5 Nf5 55. Bxc4 Kd6 56. b5 Kc5 57. Bf1 Ne3 58. a6 Kb6 59. Bd3 f2 60. Kd4 f1=Q 61. Bxf1 Nxf1 62. Kd5 Ne3+ 63. Ke6 Nc2 1/2-1/2

[Event "45th FIDE Olympiad 2024"]
[Site "Budapest"]
[Date "2024.09.14"]
[Round "4.39"]
[White "Jobava, Baadur"]
[Black "McShane, Luke J"]
[Result "1-0"]
[ECO "D00"]
[WhiteElo "2582"]
[BlackElo "2611"]
[Annotator "TA"]
[PlyCount "79"]
[EventDate "2024.09.05"]
[EventType "team-tourn"]
[EventCountry "HUN"]
[SourceTitle "playchess.com"]
[Source "ChessBase"]
[SourceQuality "1"]
[WhiteTeam "Georgia"]
[BlackTeam "England"]
[WhiteTeamCountry "GEO"]
[BlackTeamCountry "ENG"]
[TimeControl "40/5400+30:1800+30"]

{[%evp 10,79,-16,-9,-3,-17,-2,0,14,-20,-23,-16,29,27,26,35,39,15,40,12,62,78,87,80,72,79,87,72,89,85,122,115,122,127,118,103,98,108,153,174,150,154,212,238,237,230,215,235,263,264,307,287,469,466,516,485,501,544,603,620,1105,1099,1054,1048,2256,1747,2890,2012,2168,2111,1195,1064]} 1. d4 {[%emt 0:00:09]} Nf6 {[%emt 0:00:13]} 2. Nc3 {[%emt 0:00:11]} d5 {[%emt 0:01:28]} 3. Bf4 {[%emt 0:00:08]} e6 {[%emt 0:01:09]} 4. Nb5 {[%emt 0:00:08]} Na6 {[%emt 0:01:00]} 5. e3 {[%emt 0:00:12]} Be7 {[%emt 0:03:09]} (5... c6 $5 6. Nc3 $8 $11) 6. Nf3 {[%emt 0:00:10] D00: 1 d4 d5: Unusual lines.} O-O {[%emt 0:00:56]} 7. h4 {[%emt 0:00:07]} c6 {[%emt 0:06:24]} 8. Nc3 {[%emt 0:00:15]} Nc7 {[%emt 0:00:08]} 9. Ne2 $146 {[%emt 0:13:06]} ({Predecessor:} 9. Bd3 Nce8 10. Ne5 Nd6 11. Qf3 Nd7 12. Kd1 f6 13. Qh5 f5 14. Nxd7 Bxd7 15. Bxd6 Bxd6 16. f4 c5 17. g4 Be8 18. Qg5 Be7 {0-1 Panesar,V (2462)-Alekseenko,K (2650) Titled Tuesday intern op 12th Mar Early blitz 2024 (3)}) 9... c5 {[%emt 0:04:25]} 10. c3 {[%emt 0:02:23]} b5 {[%emt 0:01:41]} 11. dxc5 {[%emt 0:00:43]} Bxc5 {[%emt 0:00:23]} 12. Ned4 {[%emt 0:00:05]} Bd7 {[%emt 0:05:06]} 13. Ne5 {[%emt 0:05:52]} b4 {[%emt 0:15:44]} 14. Nd3 {[%emt 0:01:41]} Bb6 {[%emt 0:13:57]} (14... Na6 $11) 15. Nxb4 $14 {[%emt 0:01:42]} Ne4 {[%emt 0:00:20]} 16. Bd3 {[%emt 0:03:20]} f6 {[%emt 0:01:36]} 17. Bxe4 {[%emt 0:06:48]} dxe4 {[%emt 0:00:08]} 18. Qb3 $1 {[%emt 0:01:38]} Qe8 {[%emt 0:01:48] [#]} 19. a4 $1 {[%emt 0:19:48]} Ba5 {[%emt 0:16:07]} 20. O-O {[%emt 0:02:59]} Rf7 {[%emt 0:06:00] [#]} 21. Bxc7 $1 {[%emt 0:08:14]} Bxc7 {[%emt 0:00:08]} 22. Nb5 {[%emt 0:00:31]} Be5 {[%emt 0:02:05]} 23. Rfd1 {[%emt 0:00:06]} f5 {[%emt 0:11:17]} 24. Nd6 {[%emt 0:02:25]} Bxd6 {[%emt 0:00:05]} 25. Rxd6 {[%emt 0:00:04]} f4 {[%emt 0:00:05]} (25... Rc8 $16 26. Ra6 Rc7) 26. exf4 $18 {[%emt 0:01:49]} Rxf4 {[%emt 0:00:11]} 27. Qd1 {[%emt 0:00:04]} Rf7 {[%emt 0:00:56]} 28. Qd4 {[%emt 0:01:29]} Bxa4 {[%emt 0:03:15]} 29. Qxe4 {[%emt 0:00:39]} Bb3 {[%emt 0:01:37]} 30. c4 {[%emt 0:02:50]} (30. Ra3 Qf8 31. Rd4 (31. Rxb3 Qxd6 32. Qxa8+ Rf8 $11) 31... Bd5 32. Nxd5 exd5 33. Qxd5 Kh8 $18) 30... a5 $2 {[%emt 0:02:07]} (30... Qf8) 31. Nc6 $18 {[%emt 0:11:55]} (31. Rxe6 Qf8 $18) 31... Qf8 {[%emt 0:01:29]} 32. Rxa5 {[%emt 0:00:47]} ({Inferior is} 32. Qxe6 Bxc4 33. Qe5 Rxf2 $11) (32. Nxa5 Rxa5 (32... Rxf2 $2 {too greedy.} 33. Rd4 $18) 33. Rxa5 Qxd6 34. Ra8+ Rf8 35. Rxf8+ Qxf8 (35... Kxf8 $2 36. Qf3+ Ke7 37. Qb7+ Qd7 38. Qxb3 $18) 36. Qxe6+ Kh8 $19) 32... Rxa5 {[%emt 0:00:55]} 33. Rd8 {[%emt 0:00:04]} Ra1+ {[%emt 0:00:32]} 34. Kh2 {[%emt 0:00:04]} Rxf2 {[%emt 0:00:21]} 35. Qxe6+ {[%emt 0:01:50]} Kh8 {[%emt 0:00:05]} 36. Qe3 {[%emt 0:01:06]} Qxd8 {[%emt 0:00:50]} 37. Nxd8 {[%emt 0:00:04]} Rf8 {[%emt 0:00:02]} 38. Ne6 {[%emt 0:00:05]} Rb8 {[%emt 0:00:05]} 39. Qg3 {[%emt 0:00:11]} Rb7 {[%emt 0:00:15]} 40. Nc5 {[%emt 0:00:08]} 1-0

[Event "45th FIDE Olympiad 2024"]
[Site "Budapest"]
[Date "2024.09.14"]
[Round "4.39"]
[White "Karabo Mokete"]
[Black "Kamwendo Precious"]
[Result "1-0"]
[ECO "E20"]
[WhiteElo "1836"]
[BlackElo "2001"]
[PlyCount "79"]
[EventDate "2024.09.05"]
[EventType "team-tourn"]
[EventCountry "HUN"]
[WhiteTeam "Lesotho"]
[BlackTeam "Malawi"]
[WhiteTeamCountry "LES"]
[BlackTeamCountry "MWI"]
[TimeControl "40/5400+30:1800+30"]

1. d4 Nf6 2. c4 e6 3. g3 d5 4. Nf3 Nbd7 5. Bg2 Bb4+ 6. Nc3 O-O 7. O-O c6 8. Qc2 Re8 9. Bf4 Nf8 10. Rfd1 Ng6 11. Bg5 h6 12. Bxf6 Qxf6 13. e4 Bxc3 14. bxc3 dxc4 15. e5 Qd8 16. Nd2 c5 17. Nxc4 cxd4 18. cxd4 Re7 19. d5 exd5 20. Bxd5 Qc7 21. Qxg6 Be6 22. Bxe6 Rxe6 23. Qe4 Rae8 24. Qd4 Rc6 25. Nd6 Re6 26. Rd2 a6 27. f4 Re7 28. Nf5 Re8 29. Rad1 Rc2 30. e6 f6 31. Rxc2 Qxc2 32. Qd7 Qc5+ 33. Rd4 Qc1+ 34. Kf2 Qc2+ 35. Rd2 Qc5+ 36. Ne3 Qf8 37. f5 Kh7 38. Qxb7 Qc5 39. Qf7 Re7 40. Qg6+ 1-0